[Event "Early-Titled-Tuesday-Blitz-May-28-2024"]
[Site "Chess.com"]
[Date "2024.05.28"]
[Round "7"]
[White "KubaGepard"]
[Black "bubeliang"]
[Result "0-1"]
[WhiteElo "2587"]
[BlackElo "2795"]
[TimeControl "180+1"]
[EndTime "9:21:14 PDT"]
[Termination "bubeliang won by checkmate"]

1. d4 {[%clk 0:03:00.9]} 1... d5 {[%clk 0:02:34.8]} 2. Nf3 {[%clk 0:03:01.7]}
2... Nf6 {[%clk 0:02:25.4]} 3. c4 {[%clk 0:03:01.5]} 3... e6 {[%clk 0:02:24.2]}
4. e3 {[%clk 0:03:01.1]} 4... Be7 {[%clk 0:02:22.3]} 5. Nbd2 {[%clk 0:02:59.3]}
5... O-O {[%clk 0:02:21.5]} 6. Be2 {[%clk 0:02:58.9]} 6... dxc4 {[%clk
0:02:18.3]} 7. Nxc4 {[%clk 0:02:58.2]} 7... a6 {[%clk 0:02:16.4]} 8. a4 {[%clk
0:02:56.1]} 8... b6 {[%clk 0:02:15.1]} 9. Nfe5 {[%clk 0:02:55.3]} 9... Bb7
{[%clk 0:02:13.8]} 10. Bf3 {[%clk 0:02:55.4]} 10... Bxf3 {[%clk 0:02:02.8]} 11.
Qxf3 {[%clk 0:02:56.3]} 11... Qd5 {[%clk 0:02:01.8]} 12. O-O {[%clk 0:02:51.6]}
12... Nbd7 {[%clk 0:01:54.1]} 13. b3 {[%clk 0:02:47.6]} 13... Qxf3 {[%clk
0:01:45]} 14. gxf3 {[%clk 0:02:39.1]} 14... Nxe5 {[%clk 0:01:36.9]} 15. Nxe5
{[%clk 0:02:33.7]} 15... c5 {[%clk 0:01:21.8]} 16. Ba3 {[%clk 0:02:31.6]} 16...
Rfc8 {[%clk 0:01:20.6]} 17. Rac1 {[%clk 0:02:21.1]} 17... Nd5 {[%clk 0:01:13.3]}
18. e4 {[%clk 0:02:01.5]} 18... Nf4 {[%clk 0:01:11.2]} 19. Rc2 {[%clk
0:01:52.7]} 19... Bf6 {[%clk 0:01:08.2]} 20. Nc4 {[%clk 0:01:51.7]} 20... Rcb8
{[%clk 0:00:57.6]} 21. dxc5 {[%clk 0:01:45.6]} 21... bxc5 {[%clk 0:00:58.5]} 22.
Rb1 {[%clk 0:01:31]} 22... Bd4 {[%clk 0:00:57.1]} 23. Bc1 {[%clk 0:01:20.3]}
23... Nd3 {[%clk 0:00:53.6]} 24. Be3 {[%clk 0:01:18.4]} 24... Bxe3 {[%clk
0:00:47.4]} 25. fxe3 {[%clk 0:01:18]} 25... g6 {[%clk 0:00:40.7]} 26. Rd2 {[%clk
0:01:17.3]} 26... Nb4 {[%clk 0:00:40.3]} 27. Kf2 {[%clk 0:01:16.5]} 27... Rd8
{[%clk 0:00:38.3]} 28. Rbd1 {[%clk 0:01:16.3]} 28... Rxd2+ {[%clk 0:00:37.6]}
29. Rxd2 {[%clk 0:01:17.2]} 29... Ra7 {[%clk 0:00:33.3]} 30. Rd8+ {[%clk
0:01:15.5]} 30... Kg7 {[%clk 0:00:32.9]} 31. Na5 {[%clk 0:01:13.5]} 31... Rc7
{[%clk 0:00:31]} 32. f4 {[%clk 0:01:12.3]} 32... Nc6 {[%clk 0:00:26]} 33. Nxc6
{[%clk 0:01:11.1]} 33... Rxc6 {[%clk 0:00:26.9]} 34. Rd3 {[%clk 0:01:06.6]}
34... Kf6 {[%clk 0:00:20.8]} 35. Kf3 {[%clk 0:01:02.7]} 35... e5 {[%clk
0:00:19.5]} 36. Rd5 {[%clk 0:01:00.6]} 36... exf4 {[%clk 0:00:19.3]} 37. exf4
{[%clk 0:00:59.3]} 37... Ke6 {[%clk 0:00:18.5]} 38. Rd3 {[%clk 0:00:56.9]} 38...
Rb6 {[%clk 0:00:14.6]} 39. Rc3 {[%clk 0:00:55]} 39... Rb4 {[%clk 0:00:14.5]} 40.
Rxc5 {[%clk 0:00:46]} 40... Rxb3+ {[%clk 0:00:14.5]} 41. Kg4 {[%clk 0:00:46.2]}
41... Rb4 {[%clk 0:00:10.9]} 42. Ra5 {[%clk 0:00:43.5]} 42... Rxe4 {[%clk
0:00:08.7]} 43. Rxa6+ {[%clk 0:00:43.7]} 43... Ke7 {[%clk 0:00:09.2]} 44. Ra5
{[%clk 0:00:42.1]} 44... Rb4 {[%clk 0:00:08.3]} 45. Kg5 {[%clk 0:00:38.6]} 45...
f6+ {[%clk 0:00:05.8]} 46. Kh6 {[%clk 0:00:37.2]} 46... Rxf4 {[%clk 0:00:04.7]}
47. Kxh7 {[%clk 0:00:36.8]} 47... g5 {[%clk 0:00:05.3]} 48. Kg6 {[%clk
0:00:36.2]} 48... Rf2 {[%clk 0:00:04.9]} 49. Ra7+ {[%clk 0:00:29.9]} 49... Ke6
{[%clk 0:00:05.3]} 50. Ra8 {[%clk 0:00:30.2]} 50... Rxh2 {[%clk 0:00:04.3]} 51.
Re8+ {[%clk 0:00:29.8]} 51... Kd7 {[%clk 0:00:04.4]} 52. Re4 {[%clk 0:00:24.1]}
52... Rf2 {[%clk 0:00:03.4]} 53. a5 {[%clk 0:00:19.5]} 53... Kc7 {[%clk
0:00:02.9]} 54. Rc4+ {[%clk 0:00:18.7]} 54... Kb7 {[%clk 0:00:02.5]} 55. Ra4
{[%clk 0:00:15.9]} 55... Ka7 {[%clk 0:00:02.9]} 56. Kh5 {[%clk 0:00:16.1]} 56...
Rh2+ {[%clk 0:00:03]} 57. Kg6 {[%clk 0:00:16.1]} 57... Rh4 {[%clk 0:00:03.1]}
58. Ra2 {[%clk 0:00:15.2]} 58... Rf4 {[%clk 0:00:03.7]} 59. Kh5 {[%clk
0:00:15.3]} 59... g4 {[%clk 0:00:04.1]} 60. Kh4 {[%clk 0:00:15.3]} 60... f5
{[%clk 0:00:04.7]} 61. Ra3 {[%clk 0:00:15.3]} 61... Rf1 {[%clk 0:00:03.6]} 62.
Kg3 {[%clk 0:00:15.4]} 62... Ka6 {[%clk 0:00:04.3]} 63. Ra4 {[%clk 0:00:15.1]}
63... Rd1 {[%clk 0:00:04.4]} 64. Kg2 {[%clk 0:00:15.3]} 64... Rd3 {[%clk
0:00:03.5]} 65. Kf2 {[%clk 0:00:15.3]} 65... Rd5 {[%clk 0:00:03.4]} 66. Kg3
{[%clk 0:00:15.5]} 66... Rxa5 {[%clk 0:00:03.9]} 67. Rd4 {[%clk 0:00:15.3]}
67... Ra3+ {[%clk 0:00:02.6]} 68. Kg2 {[%clk 0:00:15.6]} 68... Rf3 {[%clk
0:00:03.3]} 69. Rc4 {[%clk 0:00:14.3]} 69... Kb5 {[%clk 0:00:03.7]} 70. Rc1
{[%clk 0:00:14.2]} 70... Kb4 {[%clk 0:00:04.1]} 71. Rc8 {[%clk 0:00:14]} 71...
Kb5 {[%clk 0:00:04.7]} 72. Rc2 {[%clk 0:00:13.6]} 72... Kb6 {[%clk 0:00:05.5]}
73. Rc8 {[%clk 0:00:13.3]} 73... Kb7 {[%clk 0:00:06.2]} 74. Rc2 {[%clk
0:00:13.9]} 74... Kb8 {[%clk 0:00:06.8]} 75. Rc1 {[%clk 0:00:14.2]} 75... Ka7
{[%clk 0:00:07.5]} 76. Rc2 {[%clk 0:00:14.6]} 76... Ka6 {[%clk 0:00:08.3]} 77.
Rc1 {[%clk 0:00:15]} 77... Ka5 {[%clk 0:00:09]} 78. Rc2 {[%clk 0:00:15.4]} 78...
Kb4 {[%clk 0:00:09.7]} 79. Rc8 {[%clk 0:00:15.3]} 79... Rc3 {[%clk 0:00:10]} 80.
Rf8 {[%clk 0:00:14.9]} 80... Rc5 {[%clk 0:00:10.1]} 81. Kg3 {[%clk 0:00:15]}
81... Kc4 {[%clk 0:00:08.7]} 82. Rd8 {[%clk 0:00:14.8]} 82... Rd5 {[%clk
0:00:08.9]} 83. Rc8+ {[%clk 0:00:14.9]} 83... Kd3 {[%clk 0:00:08.5]} 84. Ra8
{[%clk 0:00:15.2]} 84... Ke4 {[%clk 0:00:08.7]} 85. Re8+ {[%clk 0:00:15.1]}
85... Re5 {[%clk 0:00:09.1]} 86. Ra8 {[%clk 0:00:15.1]} 86... Rc5 {[%clk
0:00:08.7]} 87. Re8+ {[%clk 0:00:14.8]} 87... Re5 {[%clk 0:00:09.1]} 88. Ra8
{[%clk 0:00:14.7]} 88... Kd3 {[%clk 0:00:07.4]} 89. Ra3+ {[%clk 0:00:14.4]}
89... Kd4 {[%clk 0:00:06.9]} 90. Ra4+ {[%clk 0:00:14.6]} 90... Kd5 {[%clk
0:00:07.3]} 91. Ra6 {[%clk 0:00:14.5]} 91... Re4 {[%clk 0:00:07.3]} 92. Ra5+
{[%clk 0:00:13.7]} 92... Ke6 {[%clk 0:00:07.8]} 93. Ra6+ {[%clk 0:00:13.4]}
93... Ke5 {[%clk 0:00:08.4]} 94. Ra5+ {[%clk 0:00:12]} 94... Kf6 {[%clk
0:00:08.6]} 95. Ra3 {[%clk 0:00:12.2]} 95... Kg5 {[%clk 0:00:08.6]} 96. Rb3
{[%clk 0:00:11.8]} 96... f4+ {[%clk 0:00:08.8]} 97. Kg2 {[%clk 0:00:12.4]} 97...
Ra4 {[%clk 0:00:09.3]} 98. Rb2 {[%clk 0:00:12.1]} 98... Kh4 {[%clk 0:00:09.2]}
99. Kh2 {[%clk 0:00:12.4]} 99... Ra3 {[%clk 0:00:09.5]} 100. Kg2 {[%clk
0:00:12.6]} 100... g3 {[%clk 0:00:09.3]} 101. Rb4 {[%clk 0:00:11.7]} 101... Kg4
{[%clk 0:00:08.6]} 102. Rc4 {[%clk 0:00:08.8]} 102... Ra2+ {[%clk 0:00:08.3]}
103. Kg1 {[%clk 0:00:09.1]} 103... Re2 {[%clk 0:00:06.4]} 104. Rb4 {[%clk
0:00:08.4]} 104... Kf5 {[%clk 0:00:06.1]} 105. Rb3 {[%clk 0:00:07.9]} 105... Re3
{[%clk 0:00:05.9]} 106. Rb2 {[%clk 0:00:07.3]} 106... f3 {[%clk 0:00:05.5]} 107.
Rb1 {[%clk 0:00:07.3]} 107... Kg4 {[%clk 0:00:04.4]} 108. Rb4+ {[%clk
0:00:06.7]} 108... Kh3 {[%clk 0:00:04.3]} 109. Rb1 {[%clk 0:00:07.6]} 109...
Re1+ {[%clk 0:00:04.6]} 110. Rxe1 {[%clk 0:00:06.9]} 110... f2+ {[%clk
0:00:05.5]} 111. Kh1 {[%clk 0:00:07]} 111... fxe1=Q# {[%clk 0:00:06.4]} 0-1

[Event "Early-Titled-Tuesday-Blitz-May-28-2024"]
[Site "Chess.com"]
[Date "2024.05.28"]
[Round "8"]
[White "Ramosha"]
[Black "Peng_Li-Min"]
[Result "0-1"]
[WhiteElo "2561"]
[BlackElo "2769"]
[TimeControl "180+1"]
[EndTime "9:25:04 PDT"]
[Termination "Peng_Li-Min won by checkmate"]

1. e4 {[%clk 0:03:00.9]} 1... Nc6 {[%clk 0:02:59.8]} 2. Nf3 {[%clk 0:02:58.7]}
2... d5 {[%clk 0:02:59.7]} 3. exd5 {[%clk 0:02:58.9]} 3... Qxd5 {[%clk
0:03:00.6]} 4. Nc3 {[%clk 0:02:59.5]} 4... Qh5 {[%clk 0:03:00.5]} 5. Be2 {[%clk
0:02:58.8]} 5... Bg4 {[%clk 0:03:01]} 6. d3 {[%clk 0:02:57.8]} 6... e5 {[%clk
0:03:00.6]} 7. Be3 {[%clk 0:02:58.2]} 7... f5 {[%clk 0:03:01.2]} 8. h3 {[%clk
0:02:57.4]} 8... O-O-O {[%clk 0:02:58.5]} 9. O-O {[%clk 0:02:57.5]} 9... Nf6
{[%clk 0:02:54]} 10. hxg4 {[%clk 0:02:29.6]} 10... Nxg4 {[%clk 0:02:54.9]} 11.
Re1 {[%clk 0:02:29.7]} 11... e4 {[%clk 0:02:48.9]} 12. Bf4 {[%clk 0:02:29.5]}
12... Bd6 {[%clk 0:02:38.7]} 13. Bxd6 {[%clk 0:02:29.4]} 13... Rxd6 {[%clk
0:02:39.6]} 14. dxe4 {[%clk 0:02:22.6]} 14... Rh6 {[%clk 0:02:36.8]} 15. Bb5
{[%clk 0:01:51.8]} 15... Qh1# {[%clk 0:02:35.5]} 0-1

[Event "Early-Titled-Tuesday-Blitz-May-28-2024"]
[Site "Chess.com"]
[Date "2024.05.28"]
[Round "8"]
[White "ploxoi"]
[Black "2Coaches1Profile"]
[Result "1-0"]
[WhiteElo "2407"]
[BlackElo "2570"]
[TimeControl "180+1"]
[EndTime "9:25:53 PDT"]
[Termination "ploxoi won by resignation"]

1. d4 {[%clk 0:03:00.9]} 1... c5 {[%clk 0:02:57.1]} 2. d5 {[%clk 0:03:00.5]}
2... e6 {[%clk 0:02:56.7]} 3. c4 {[%clk 0:03:00.2]} 3... exd5 {[%clk 0:02:57.6]}
4. cxd5 {[%clk 0:03:01]} 4... d6 {[%clk 0:02:58.2]} 5. Nc3 {[%clk 0:03:00.8]}
5... g6 {[%clk 0:02:58.8]} 6. g3 {[%clk 0:03:00.5]} 6... Bg7 {[%clk 0:02:59.3]}
7. Bg2 {[%clk 0:03:00.8]} 7... Nf6 {[%clk 0:02:59.5]} 8. Nf3 {[%clk 0:03:01.4]}
8... O-O {[%clk 0:03:00.4]} 9. O-O {[%clk 0:03:01.7]} 9... a6 {[%clk 0:03:01]}
10. a4 {[%clk 0:03:01.6]} 10... Nbd7 {[%clk 0:03:01.6]} 11. h3 {[%clk
0:03:01.6]} 11... Qe7 {[%clk 0:03:00.1]} 12. Re1 {[%clk 0:02:55.3]} 12... Rb8
{[%clk 0:02:59.3]} 13. a5 {[%clk 0:02:53.6]} 13... b5 {[%clk 0:02:53.4]} 14.
axb6 {[%clk 0:02:53]} 14... Rxb6 {[%clk 0:02:53.7]} 15. e4 {[%clk 0:02:51.8]}
15... Ne8 {[%clk 0:02:43.3]} 16. Bg5 {[%clk 0:02:48.4]} 16... Bf6 {[%clk
0:02:41.2]} 17. Bxf6 {[%clk 0:02:42.9]} 17... Qxf6 {[%clk 0:02:38.9]} 18. Qc2
{[%clk 0:02:40.8]} 18... Rb4 {[%clk 0:02:31.8]} 19. Ra4 {[%clk 0:02:37.9]} 19...
Nb6 {[%clk 0:02:28.2]} 20. Rxb4 {[%clk 0:02:28]} 20... cxb4 {[%clk 0:02:29.1]}
21. Nd1 {[%clk 0:02:17.4]} 21... Bxh3 {[%clk 0:02:24.3]} 22. Bxh3 {[%clk
0:01:56.4]} 22... Qxf3 {[%clk 0:02:23.6]} 23. Qc6 {[%clk 0:01:57]} 23... Nf6
{[%clk 0:02:15.3]} 24. Qxb6 {[%clk 0:01:55.4]} 24... Nxe4 {[%clk 0:02:15.3]} 25.
Bg2 {[%clk 0:01:54.7]} 1-0

[Event "Early-Titled-Tuesday-Blitz-May-28-2024"]
[Site "Chess.com"]
[Date "2024.05.28"]
[Round "8"]
[White "lachesisQ"]
[Black "Kacparov"]
[Result "1/2-1/2"]
[WhiteElo "3092"]
[BlackElo "2952"]
[TimeControl "180+1"]
[EndTime "9:25:59 PDT"]
[Termination "Game drawn by repetition"]

1. e4 {[%clk 0:03:00.9]} 1... c5 {[%clk 0:03:00.3]} 2. Nf3 {[%clk 0:03:01]} 2...
e6 {[%clk 0:03:00.8]} 3. d4 {[%clk 0:03:01.3]} 3... cxd4 {[%clk 0:03:01.7]} 4.
Nxd4 {[%clk 0:03:02.1]} 4... Nc6 {[%clk 0:03:02.2]} 5. Nc3 {[%clk 0:03:02.5]}
5... Qc7 {[%clk 0:03:02.8]} 6. g3 {[%clk 0:03:02.5]} 6... a6 {[%clk 0:03:03.2]}
7. Bg2 {[%clk 0:03:02.6]} 7... Nf6 {[%clk 0:03:03.9]} 8. O-O {[%clk 0:03:02.5]}
8... Bb4 {[%clk 0:03:04.3]} 9. Nxc6 {[%clk 0:02:55.9]} 9... bxc6 {[%clk
0:03:04.3]} 10. a3 {[%clk 0:02:42.9]} 10... Be7 {[%clk 0:03:02.6]} 11. f4 {[%clk
0:02:35.3]} 11... d5 {[%clk 0:03:02.9]} 12. Be3 {[%clk 0:02:31.3]} 12... O-O
{[%clk 0:03:01]} 13. Qe2 {[%clk 0:02:28.2]} 13... a5 {[%clk 0:02:59.2]} 14. Rfd1
{[%clk 0:02:22.9]} 14... Ba6 {[%clk 0:02:57.2]} 15. Qe1 {[%clk 0:02:22.9]} 15...
Ng4 {[%clk 0:02:48]} 16. Na4 {[%clk 0:01:27.8]} 16... Bb5 {[%clk 0:02:28.3]} 17.
Nc3 {[%clk 0:01:19.5]} 17... Ba6 {[%clk 0:02:22.1]} 18. Na4 {[%clk 0:01:19.5]}
18... Bb5 {[%clk 0:02:21.5]} 19. Nc3 {[%clk 0:01:19.6]} 19... Ba6 {[%clk
0:02:21.7]} 1/2-1/2

[Event "Early-Titled-Tuesday-Blitz-May-28-2024"]
[Site "Chess.com"]
[Date "2024.05.28"]
[Round "8"]
[White "luachess1"]
[Black "UK_23"]
[Result "0-1"]
[WhiteElo "1770"]
[BlackElo "2407"]
[TimeControl "180+1"]
[EndTime "9:26:05 PDT"]
[Termination "UK_23 won by resignation"]

1. d4 {[%clk 0:03:00.9]} 1... Nf6 {[%clk 0:02:59.1]} 2. c4 {[%clk 0:03:01.1]}
2... c5 {[%clk 0:02:59.1]} 3. d5 {[%clk 0:03:00.5]} 3... e6 {[%clk 0:02:58.9]}
4. Nc3 {[%clk 0:02:55.1]} 4... exd5 {[%clk 0:02:57]} 5. cxd5 {[%clk 0:02:55.9]}
5... d6 {[%clk 0:02:57.3]} 6. e4 {[%clk 0:02:55.3]} 6... g6 {[%clk 0:02:57.7]}
7. Bg5 {[%clk 0:02:54.1]} 7... h6 {[%clk 0:02:54.8]} 8. Bh4 {[%clk 0:02:52.1]}
8... Bg7 {[%clk 0:02:54.9]} 9. Nf3 {[%clk 0:02:51.3]} 9... g5 {[%clk 0:02:55]}
10. Bg3 {[%clk 0:02:50.7]} 10... Nh5 {[%clk 0:02:55.3]} 11. Bd3 {[%clk
0:02:39.8]} 11... O-O {[%clk 0:02:53.1]} 12. Qe2 {[%clk 0:02:36]} 12... a6
{[%clk 0:02:51.4]} 13. a4 {[%clk 0:02:31]} 13... f5 {[%clk 0:02:38.4]} 14. e5
{[%clk 0:02:00.9]} 14... Nxg3 {[%clk 0:02:32.2]} 15. hxg3 {[%clk 0:01:53.9]}
15... dxe5 {[%clk 0:02:32.2]} 16. Nxe5 {[%clk 0:01:38.8]} 16... Bxe5 {[%clk
0:02:26.6]} 17. Rxh6 {[%clk 0:01:30.1]} 17... Bxc3+ {[%clk 0:02:24.5]} 18. bxc3
{[%clk 0:01:22.3]} 18... Re8 {[%clk 0:02:24.9]} 0-1

[Event "Early-Titled-Tuesday-Blitz-May-28-2024"]
[Site "Chess.com"]
[Date "2024.05.28"]
[Round "8"]
[White "zurzan"]
[Black "C_K_G"]
[Result "0-1"]
[WhiteElo "2140"]
[BlackElo "2297"]
[TimeControl "180+1"]
[EndTime "9:26:20 PDT"]
[Termination "C_K_G won by checkmate"]

1. Nf3 {[%clk 0:03:00.9]} 1... c5 {[%clk 0:02:55]} 2. b3 {[%clk 0:03:01.7]} 2...
d5 {[%clk 0:02:54.4]} 3. Bb2 {[%clk 0:03:02.5]} 3... e6 {[%clk 0:02:54.8]} 4. d4
{[%clk 0:03:01.4]} 4... cxd4 {[%clk 0:02:51.8]} 5. Bxd4 {[%clk 0:02:57.2]} 5...
Nf6 {[%clk 0:02:50.4]} 6. e3 {[%clk 0:02:53.6]} 6... a6 {[%clk 0:02:49.1]} 7.
Be2 {[%clk 0:02:51.4]} 7... Nc6 {[%clk 0:02:48.4]} 8. Bb2 {[%clk 0:02:50.7]}
8... Bd6 {[%clk 0:02:46.1]} 9. O-O {[%clk 0:02:50.3]} 9... O-O {[%clk 0:02:46]}
10. Nc3 {[%clk 0:02:42.9]} 10... Ne7 {[%clk 0:02:35.3]} 11. Nb1 {[%clk
0:02:21.6]} 11... Ng6 {[%clk 0:02:26.5]} 12. c4 {[%clk 0:02:21.2]} 12... dxc4
{[%clk 0:02:19.2]} 13. Bxc4 {[%clk 0:02:20.6]} 13... e5 {[%clk 0:02:15.5]} 14.
Nc3 {[%clk 0:02:13.4]} 14... Bg4 {[%clk 0:02:10.9]} 15. Be2 {[%clk 0:01:55.3]}
15... e4 {[%clk 0:01:45.5]} 16. Nd4 {[%clk 0:01:55.1]} 16... Bxe2 {[%clk
0:01:44.4]} 17. Ndxe2 {[%clk 0:01:53.6]} 17... Ng4 {[%clk 0:01:41.9]} 18. Ng3
{[%clk 0:01:52.9]} 18... Qh4 {[%clk 0:01:40.8]} 19. Ncxe4 {[%clk 0:01:47.1]}
19... Qxh2# {[%clk 0:01:40.2]} 0-1

[Event "Early-Titled-Tuesday-Blitz-May-28-2024"]
[Site "Chess.com"]
[Date "2024.05.28"]
[Round "8"]
[White "stollenmonster"]
[Black "jaskol95"]
[Result "1-0"]
[WhiteElo "2862"]
[BlackElo "2523"]
[TimeControl "180+1"]
[EndTime "9:26:33 PDT"]
[Termination "stollenmonster won by resignation"]

1. e4 {[%clk 0:03:00.9]} 1... e6 {[%clk 0:03:00.6]} 2. Nc3 {[%clk 0:03:00.1]}
2... d5 {[%clk 0:03:00.9]} 3. g3 {[%clk 0:03:00.9]} 3... Nf6 {[%clk 0:03:00.5]}
4. Bg2 {[%clk 0:03:01]} 4... dxe4 {[%clk 0:03:00.6]} 5. Nxe4 {[%clk 0:03:01.8]}
5... Nxe4 {[%clk 0:03:01.2]} 6. Bxe4 {[%clk 0:03:02.7]} 6... Nd7 {[%clk
0:03:00.6]} 7. d4 {[%clk 0:03:02.9]} 7... Nf6 {[%clk 0:03:01.1]} 8. Bg2 {[%clk
0:03:03.2]} 8... c6 {[%clk 0:03:01.2]} 9. Ne2 {[%clk 0:03:03.8]} 9... Bd6 {[%clk
0:03:00.7]} 10. O-O {[%clk 0:03:04.5]} 10... O-O {[%clk 0:03:00.1]} 11. c4
{[%clk 0:03:05.1]} 11... Qc7 {[%clk 0:02:57]} 12. Nc3 {[%clk 0:03:05.3]} 12...
b6 {[%clk 0:02:50.7]} 13. Bg5 {[%clk 0:03:04.6]} 13... Be7 {[%clk 0:02:47.5]}
14. Rc1 {[%clk 0:03:03.1]} 14... Bb7 {[%clk 0:02:46.9]} 15. Qe2 {[%clk 0:03:00]}
15... Rad8 {[%clk 0:02:44.5]} 16. Rfd1 {[%clk 0:03:00.3]} 16... Rfe8 {[%clk
0:02:37.2]} 17. h3 {[%clk 0:02:51.5]} 17... h6 {[%clk 0:02:35.5]} 18. Bf4 {[%clk
0:02:51.6]} 18... Qc8 {[%clk 0:02:36]} 19. Ne4 {[%clk 0:02:48.1]} 19... Nxe4
{[%clk 0:02:32.6]} 20. Bxe4 {[%clk 0:02:49]} 20... c5 {[%clk 0:02:26.3]} 21.
dxc5 {[%clk 0:02:35.6]} 21... Bxc5 {[%clk 0:02:22.4]} 22. b3 {[%clk 0:02:07.5]}
22... Bxe4 {[%clk 0:02:08.7]} 23. Qxe4 {[%clk 0:02:07.4]} 23... e5 {[%clk
0:02:07.9]} 24. Rxd8 {[%clk 0:02:03.5]} 24... Qxd8 {[%clk 0:02:02.8]} 25. Be3
{[%clk 0:02:03]} 25... Qd6 {[%clk 0:01:53.7]} 26. Bxc5 {[%clk 0:02:01]} 26...
Qxc5 {[%clk 0:01:53.3]} 27. Rd1 {[%clk 0:02:00.6]} 27... Re6 {[%clk 0:01:39.2]}
28. Rd8+ {[%clk 0:01:58.7]} 1-0

[Event "Early-Titled-Tuesday-Blitz-May-28-2024"]
[Site "Chess.com"]
[Date "2024.05.28"]
[Round "8"]
[White "romulocardoso"]
[Black "dianamirza"]
[Result "1-0"]
[WhiteElo "2309"]
[BlackElo "2001"]
[TimeControl "180+1"]
[EndTime "9:26:45 PDT"]
[Termination "romulocardoso won by resignation"]

1. e4 {[%clk 0:03:00.9]} 1... d5 {[%clk 0:02:42.7]} 2. exd5 {[%clk 0:02:59.3]}
2... Qxd5 {[%clk 0:02:42.3]} 3. Nc3 {[%clk 0:02:58.5]} 3... Qd8 {[%clk
0:02:40.9]} 4. Nf3 {[%clk 0:02:58.7]} 4... Nf6 {[%clk 0:02:40]} 5. h3 {[%clk
0:02:58.8]} 5... Nc6 {[%clk 0:02:38.9]} 6. Bc4 {[%clk 0:02:59]} 6... a6 {[%clk
0:02:38.5]} 7. O-O {[%clk 0:02:59.2]} 7... b5 {[%clk 0:02:37.4]} 8. Bb3 {[%clk
0:02:59.7]} 8... Bb7 {[%clk 0:02:37.7]} 9. Re1 {[%clk 0:02:59.7]} 9... e6 {[%clk
0:02:37.3]} 10. a4 {[%clk 0:03:00.1]} 10... Be7 {[%clk 0:02:34.8]} 11. axb5
{[%clk 0:02:59.3]} 11... axb5 {[%clk 0:02:34.7]} 12. Rxa8 {[%clk 0:03:00.2]}
12... Bxa8 {[%clk 0:02:35.2]} 13. Nxb5 {[%clk 0:03:00.2]} 13... O-O {[%clk
0:02:34.2]} 14. d3 {[%clk 0:02:56.9]} 14... Na5 {[%clk 0:02:26.3]} 15. Ba2
{[%clk 0:02:53.4]} 15... Bd5 {[%clk 0:02:24.5]} 16. Bxd5 {[%clk 0:02:47.6]}
16... Nxd5 {[%clk 0:02:23.9]} 17. Bd2 {[%clk 0:02:44.9]} 17... Nb7 {[%clk
0:02:19.1]} 18. c4 {[%clk 0:02:25.9]} 18... Nb4 {[%clk 0:02:06.7]} 19. d4 {[%clk
0:02:25.4]} 19... Nc6 {[%clk 0:02:01.3]} 20. Bc3 {[%clk 0:02:23.2]} 20... Nba5
{[%clk 0:01:57.8]} 21. Qa4 {[%clk 0:02:14.7]} 21... Nb7 {[%clk 0:01:47.6]} 22.
Qa6 {[%clk 0:02:10.5]} 22... Qd6 {[%clk 0:00:59.9]} 23. Nxd6 {[%clk 0:02:08.7]}
1-0

[Event "Early-Titled-Tuesday-Blitz-May-28-2024"]
[Site "Chess.com"]
[Date "2024.05.28"]
[Round "8"]
[White "Irina_Mikhaylova"]
[Black "Casper"]
[Result "1-0"]
[WhiteElo "2356"]
[BlackElo "2474"]
[TimeControl "180+1"]
[EndTime "9:27:08 PDT"]
[Termination "Irina_Mikhaylova won by resignation"]

1. d4 {[%clk 0:03:00.9]} 1... d5 {[%clk 0:02:56.7]} 2. Nf3 {[%clk 0:03:01.2]}
2... Bg4 {[%clk 0:02:55.8]} 3. Ne5 {[%clk 0:03:00.1]} 3... Bh5 {[%clk 0:02:56]}
4. c4 {[%clk 0:03:00.2]} 4... e6 {[%clk 0:02:56.1]} 5. Bf4 {[%clk 0:02:54]} 5...
Nf6 {[%clk 0:02:55.3]} 6. Nc3 {[%clk 0:02:52]} 6... c6 {[%clk 0:02:51.9]} 7. Qb3
{[%clk 0:02:49.7]} 7... Qb6 {[%clk 0:02:42.6]} 8. c5 {[%clk 0:02:49.8]} 8...
Qxb3 {[%clk 0:02:42.6]} 9. axb3 {[%clk 0:02:50.7]} 9... Nbd7 {[%clk 0:02:42.8]}
10. b4 {[%clk 0:02:51.1]} 10... Nxe5 {[%clk 0:02:41.2]} 11. Bxe5 {[%clk
0:02:51]} 11... Nd7 {[%clk 0:02:41.9]} 12. Bg3 {[%clk 0:02:50]} 12... f6 {[%clk
0:02:41.8]} 13. b5 {[%clk 0:02:48.5]} 13... e5 {[%clk 0:02:41.1]} 14. e3 {[%clk
0:02:48.8]} 14... Bxc5 {[%clk 0:02:13.1]} 15. dxc5 {[%clk 0:02:46.5]} 15... Nxc5
{[%clk 0:02:14]} 16. Be2 {[%clk 0:02:34.3]} 16... Bg6 {[%clk 0:02:06.5]} 17. O-O
{[%clk 0:02:20.9]} 17... h5 {[%clk 0:02:01.4]} 18. b4 {[%clk 0:02:00.2]} 18...
Nb3 {[%clk 0:01:59.3]} 19. Ra3 {[%clk 0:01:59.1]} 19... Nd2 {[%clk 0:01:39.4]}
20. Rd1 {[%clk 0:01:59.2]} 20... d4 {[%clk 0:01:29.1]} 21. exd4 {[%clk
0:01:45.2]} 21... exd4 {[%clk 0:01:28.1]} 22. Rxd2 {[%clk 0:01:33.7]} 22... dxc3
{[%clk 0:01:23.9]} 23. Rxc3 {[%clk 0:01:34.2]} 23... h4 {[%clk 0:01:23.4]} 24.
Bf4 {[%clk 0:01:26.4]} 1-0

[Event "Early-Titled-Tuesday-Blitz-May-28-2024"]
[Site "Chess.com"]
[Date "2024.05.28"]
[Round "8"]
[White "Navyblue1"]
[Black "FlemingA"]
[Result "0-1"]
[WhiteElo "2253"]
[BlackElo "2466"]
[TimeControl "180+1"]
[EndTime "9:27:08 PDT"]
[Termination "FlemingA won by resignation"]

1. d4 {[%clk 0:03:00.9]} 1... c6 {[%clk 0:02:59]} 2. c4 {[%clk 0:02:55.6]} 2...
g6 {[%clk 0:02:53.5]} 3. Nc3 {[%clk 0:02:51.1]} 3... Bg7 {[%clk 0:02:52.2]} 4.
e4 {[%clk 0:02:48]} 4... d6 {[%clk 0:02:49.8]} 5. h3 {[%clk 0:02:43.4]} 5... e5
{[%clk 0:02:47.9]} 6. d5 {[%clk 0:02:41.9]} 6... f5 {[%clk 0:02:44.7]} 7. exf5
{[%clk 0:02:35.9]} 7... Bxf5 {[%clk 0:02:45.2]} 8. dxc6 {[%clk 0:02:27.5]} 8...
bxc6 {[%clk 0:02:44.8]} 9. Nge2 {[%clk 0:02:27.5]} 9... Nf6 {[%clk 0:02:44.8]}
10. Ng3 {[%clk 0:02:27.1]} 10... Be6 {[%clk 0:02:45]} 11. Be3 {[%clk 0:02:18.3]}
11... O-O {[%clk 0:02:45.1]} 12. Qd2 {[%clk 0:02:17.7]} 12... Qe7 {[%clk
0:02:42.3]} 13. O-O-O {[%clk 0:02:11.8]} 13... d5 {[%clk 0:02:42]} 14. Bh6
{[%clk 0:02:05.9]} 14... Nbd7 {[%clk 0:02:29.1]} 15. Bxg7 {[%clk 0:02:04.1]}
15... Kxg7 {[%clk 0:02:29.4]} 16. h4 {[%clk 0:01:53.2]} 16... h5 {[%clk
0:02:02]} 17. Kb1 {[%clk 0:01:40.9]} 17... Nc5 {[%clk 0:01:55.1]} 18. Bd3 {[%clk
0:01:22.7]} 18... e4 {[%clk 0:01:48.8]} 19. Be2 {[%clk 0:01:17.3]} 19... Rad8
{[%clk 0:01:36.3]} 20. Kc1 {[%clk 0:01:12.4]} 20... d4 {[%clk 0:01:34.9]} 21.
Ncxe4 {[%clk 0:01:11]} 21... Ncxe4 {[%clk 0:01:35.1]} 22. Nxe4 {[%clk
0:01:10.9]} 22... Nxe4 {[%clk 0:01:35.6]} 0-1